Workbook

Sheet SS Cost Limits
A1: Project Name: | R1: HCD Contract #(s):
A2: NOTE: This Supportive Services Cost Limit tool is only used for projects subject to the 2017 UMRs or subsequent amendments. Complete all yellow shaded cells. | T2: Has or will this Project receive HCD HOME, HOME-ARP, or NHTF funding: | AD2: Has or will this Project receive only HCD VHHP funding: | AQ2: Fiscal Year | AR2: (1)(A) & (B) | AS2: (2)(A) & (B) | AT2: (3) | AU2: (3) VHHP | AV2: 8314 (e)(1) | AW2: 8314 (e)(2) | AX2: 8314 (e)(3) | AY2: 8314 (e)(4)
A3: Supportive Services Cost Limits per HCD Administrative Notice 24-05 | AK3: 2024-12-10 | AP3: Yes | AQ3: 2025 | AR3: 10000 | AS3: 4000 | AT3: 326 | AU3: 997 | AV3: 4971 | AW3: 3728 | AX3: 1281 | AY3: 305
A4: UMR §8301(t): “Supportive Services” - social, health, educational, income support and employment services and benefits, coordination of community building and educational activities, individualized needs assessment, and individualized assistance with obtaining services and benefits. | AP4: No | AQ4: =+AQ3+1 -> 2026 | AR4: =AR3*1.035 -> 10350 | AS4: 4140 | AT4: 337.41 | AU4: 1031.895 | AV4: =AV3*1.025 -> 5095.275 | AW4: 3821.2 | AX4: 1313.025 | AY4: 312.625
A5: UMR §8301(u): “Supportive Services Costs” - the costs of providing tenants service coordination, case management, and direct resident and Supportive Services. It includes: (1) the cost of providing tenants with information on and referral to social, health, educational, income support and employment services and benefits, coordination of community building and educational activities, individualized needs assessment, and individualized assistance with obtaining services and benefits; (2) salaries, benefits, contracted services, telecommunication expenses, travel costs, supplies, office expenses, staff training, maintenance of on-site equipment used in services programs, such as computer labs, incidental costs related to resident events, and other similar costs approved by the Department. | AQ5: =+AQ4+1 -> 2027 | AR5: 10712.25 | AS5: 4284.9 | AT5: 349.21935 | AU5: 1068.011325 | AV5: =AV4*1.025 -> 5222.656875 | AW5: 3916.73 | AX5: 1345.850625 | AY5: 320.440625
A6: a. Supportive Services Units: | I6: Total number units: | O6: Certification Year - select budget reporting perid year: | AC6: Total Units | AE6: Max PUPY Expense | AH6: Max Costs | AQ6: =+AQ5+1 -> 2028 | AR6: 11087.17875 | AS6: 4434.8715 | AT6: 361.4420272 | AU6: 1105.391721 | AV6: 5353.223297 | AW6: 4014.64825 | AX6: 1379.496891 | AY6: 328.4516406
A7: (1) Total number of units: (A) for supportive housing restricted to individuals or families experiencing chronic homelessness or homelessness, as defined consistent with Health and Safety Code (HSC) §50675.141; and (B) for supportive housing units restricted to occupancy by special needs populations under HCD programs subject to Administrative Notice 24-05 (“Special needs population” has the same meaning as set forth in individual program guidelines); units anticipated to be restricted to individuals or families experiencing chronic homelessness as defined consistent with HSC §50675.14. 1For units assisted by the HCD Veterans Housing and Homelessness Prevention (VHHP) program, this category includes Supportive Housing Units restricted to Veterans who are experiencing Chronic Homelessness, units restricted to persons who are experiencing Chronic Homelessness by another public agency program, Supportive Housing Units restricted to Veterans with a Disability Experiencing Homelessness, and other Units restricted to persons who are Veterans with a Disability Experiencing Homelessness. (Capitalized terms in this footnote have the same meaning as those set forth in the VHHP guidelines.) | AE7: =IFERROR(VLOOKUP($AA$6,$AQ$3:$AY$77,2,FALSE),"") ->  | AH7: =IFERROR(AE7*AC7,"") ->  | AQ7: 2029 | AR7: =AR6*1.035 -> 11475.23001 | AS7: =AS6*1.035 -> 4590.092002 | AT7: =AT6*1.035 -> 374.0924982 | AU7: 1144.080432 | AV7: =AV6*1.025 -> 5487.053879 | AW7: 4115.014456 | AX7: 1413.984313 | AY7: 336.6629316
A8: (2) Total number of other units2 where the Sponsor, their affiliate, or a service provider under contract to provide Supportive Services at the Project has both: (A) qualified staff devoted exclusively to oversight and quality control of resident services in affordable housing, including the Project; and (B) a system to track and report on tenant outcomes, such as changes in employment status and income. Do not include units counted in category (1) above. 2For units assisted by the VHHP program, this category includes Units that are restricted to Extremely Low-Income households, but not to Veterans who are experiencing Chronic Homelessness or Veterans with a Disability Experiencing Homelessness. (Capitalized terms in this footnote have the same meaning as those set forth in the VHHP guidelines.) | AE8: =IFERROR(VLOOKUP($AA$6,$AQ$3:$AY$77,3,FALSE),"") ->  | AH8: =IFERROR(AE8*AC8,"") ->  | AQ8: 2030 | AR8: 11876.86306 | AS8: 4750.745223 | AT8: 387.1857356 | AU8: =AU7*1.035 -> 1184.123247 | AV8: =AV7*1.025 -> 5624.230226 | AW8: 4217.889818 | AX8: 1449.333921 | AY8: 345.0795049
A9: (3) Except as noted below for the VHHP program, total number of units where the Sponsor, their affiliate, or a service provider under contract does not satisfy the requirements set forth in subsection (2) above3. Do not include units counted in categories (1) and (2) above. 3For units assisted by the VHHP program, the amount for this category of units will remain as currently allowed under this program. | AE9: =IFERROR(IF(AK2<>"Yes",VLOOKUP($AA$6,$AQ$3:$AY$77,4,FALSE),VLOOKUP($AA$6,$AQ$3:$AY$77,5,FALSE)),"") ->  | AH9: =IFERROR(AE9*AC9,"") ->  | AQ9: 2031 | AR9: =AR8*1.025 -> 12173.78463 | AS9: =AS8*1.025 -> 4869.513853 | AT9: =AT8*1.025 -> 396.865379 | AU9: =AU8*1.035 -> 1225.56756 | AV9: =AV8*1.025 -> 5764.835982 | AW9: 4323.337063 | AX9: 1485.567269 | AY9: 353.7064926
A10: (4) Maximum Supportive Services Costs | AC10: =SUM(AC7:AD9) -> 0 | AH10: =SUM(AH7:AL9) -> 0 | AQ10: 2032 | AR10: 12478.12925 | AS10: 4991.251699 | AT10: 406.7870135 | AU10: =AU9*1.035 -> 1268.462425 | AV10: =AV9*1.025 -> 5908.956881 | AW10: 4431.42049 | AX10: 1522.70645 | AY10: 362.5491549
AQ11: 2033 | AR11: 12790.08248 | AS11: 5116.032992 | AT11: 416.9566888 | AU11: =AU10*1.035 -> 1312.85861 | AV11: =AV10*1.025 -> 6056.680804 | AW11: 4542.206002 | AX11: 1560.774112 | AY11: 371.6128837
A12: b. Budgeted Supportive Services Costs | AE12: Max Allowable Amt | AQ12: 2034 | AR12: 13109.83454 | AS12: 5243.933817 | AT12: 427.3806061 | AU12: =AU11*1.035 -> 1358.808661 | AV12: =AV11*1.025 -> 6208.097824 | AW12: 4655.761152 | AX12: 1599.793465 | AY12: 380.9032058
A13: (1) | B13: Staff Supervisor(s) Salaries - may not exceed 15% of on-site staff salaries* (b)(1) | AC13: <====== | AE13: =(Z14+Z15)*0.15 -> 0 | AQ13: 2035 | AR13: 13437.58041 | AS13: 5375.032162 | AT13: 438.0651212 | AU13: =AU12*1.035 -> 1406.366964 | AV13: =AV12*1.025 -> 6363.300269 | AW13: 4772.155181 | AX13: 1639.788301 | AY13: 390.425786
A14: (2) | B14: On-Site Services Coordinator Salaries | AQ14: 2036 | AR14: 13773.51992 | AS14: 5509.407966 | AT14: 449.0167492 | AU14: =AU13*1.035 -> 1455.589808 | AV14: =AV13*1.025 -> 6522.382776 | AW14: 4891.45906 | AX14: 1680.783009 | AY14: 400.1864306
A15: (3) | B15: On-Site other Supportive Services Staff Salaries | AQ15: 2037 | AR15: 14117.85791 | AS15: 5647.143165 | AT15: 460.242168 | AU15: =AU14*1.035 -> 1506.535451 | AV15: =AV14*1.025 -> 6685.442345 | AW15: 5013.745537 | AX15: 1722.802584 | AY15: 410.1910914
A16: (4) | B16: Other Supportive Services Costs: (specify) | AQ16: 2038 | AR16: 14470.80436 | AS16: 5788.321745 | AT16: 471.7482222 | AU16: =AU15*1.035 -> 1559.264192 | AV16: =AV15*1.025 -> 6852.578404 | AW16: 5139.089175 | AX16: 1765.872648 | AY16: 420.4458687
A17: (5) | B17: Other Supportive Services Costs: (specify) | AQ17: 2039 | AR17: 14832.57447 | AS17: 5933.029788 | AT17: 483.5419277 | AU17: =AU16*1.035 -> 1613.838439 | AV17: =AV16*1.025 -> 7023.892864 | AW17: 5267.566405 | AX17: 1810.019465 | AY17: 430.9570154
A18: (6) | B18: Supportive Services Administrative Overhead - may not exceed 15% of Total Supportive Services Costs* (b)(2) | AC18: <====== | AE18: =SUM(Z13:Z18)*0.15 -> 0 | AQ18: 2040 | AR18: 15203.38883 | AS18: 6081.355533 | AT18: 495.6304759 | AU18: =AU17*1.035 -> 1670.322784 | AV18: =AV17*1.025 -> 7199.490186 | AW18: 5399.255565 | AX18: 1855.269951 | AY18: 441.7309408
A19: (7) | B19: Total Budgeted Supportive Services Costs | Z19: =SUM(Z13:Z18) -> 0 | AC19: <====== | AE19: =AH10 -> 0 | AQ19: 2041 | AR19: 15583.47355 | AS19: 6233.389421 | AT19: 508.0212378 | AU19: =AU18*1.035 -> 1728.784082 | AV19: =AV18*1.025 -> 7379.47744 | AW19: 5534.236954 | AX19: 1901.6517 | AY19: 452.7742143
A20: Supportive Services Cost Limits - 2017 Uniform Multifamily Regulation (UMR) HOME and NHTF funded projects | AK20: =AK3 -> 2024-12-10
A21: UMR §8301(t): “Supportive Services” - social, health, educational, income support and employment services and benefits, coordination of community building and educational activities, individualized needs assessment, and individualized assistance with obtaining services and benefits.
A22: UMR §8301(u): “Supportive Services Costs” - the costs of providing tenants service coordination, case management, and direct resident and Supportive Services. It includes: (1) the cost of providing tenants with information on and referral to social, health, educational, income support and employment services and benefits, coordination of community building and educational activities, individualized needs assessment, and individualized assistance with obtaining services and benefits; (2) salaries, benefits, contracted services, telecommunication expenses, travel costs, supplies, office expenses, staff training, maintenance of on-site equipment used in services programs, such as computer labs, incidental costs related to resident events, and other similar costs approved by the Department.
A23: a. Supportive Services Units: | I23: Total number units: | O23: Certification Year - select budget reporting perid year: | AA23: 2025 | AC23: Total Units | AE23: Max PUPY Expense | AH23: Max Costs
A24: (1) UMR §8314(e)(1): Total number of Supportive Housing (SH) units anticipated to be restricted to individuals or families experiencing chronic homelessness as defined consistent with Health and Safety Code (HSC) §50675.14. | AE24: =IFERROR(VLOOKUP($AA$23,$AQ$3:$AY$76,6,FALSE),"") -> 4971 | AH24: =IFERROR(AE24*AC24,"") -> 0
A25: (2) UMR §8314(e)(2): Total number of Supportive Housing (SH) units (other than those restricted to individuals or families experiencing chronic homelessness pursuant to HSC §50675.14), PLUS the total number of units restricted to occupancy by Special Needs Populations (SNP)* under any HCD program. (*click here for definition - §7301(s) of the MHP Regulations). Do not include units included in (1) above. | AE25: =IFERROR(VLOOKUP($AA$23,$AQ$3:$AY$76,7,FALSE),"") -> 3728 | AH25: =IFERROR(AE25*AC25,"") -> 0
A26: (3) UMR §8314(e)(3): Total number of units where the Sponsor, their affiliate, or a service provider under contract to provide Supportive Services at the Project has both: (A) qualified staff devoted exclusively to oversight and quality control of resident services in affordable housing, including the Project; and (B) a system to track and report on tenant outcomes, such as changes in employment status and income. Do not include units included in items (1) and (2) above. | AE26: =IFERROR(VLOOKUP($AA$23,$AQ$3:$AY$76,8,FALSE),"") -> 1281 | AH26: =IFERROR(AE26*AC26,"") -> 0
A27: (4) UMR §8314(e)(4): Total number of units anticipated to be offered Supportive Services provided by the Project Sponsor, a Sponsor affiliate, or contracted service provider that do not satisfy the criteria in items (1), (2) and (3) above. | AE27: =IFERROR(VLOOKUP($AA$23,$AQ$3:$AY$76,9,FALSE),"") -> 305 | AH27: =IFERROR(AE27*AC27,"") -> 0
A28: (5) Maximum Supportive Services Costs | AC28: =SUM(AC24:AD27) -> 0 | AH28: =SUM(AH24:AL27) -> 0
A30: b. Budgeted Supportive Services Costs | AE30: Max Allowable Amt
A31: (1) | B31: Staff Supervisor(s) Salaries - may not exceed 10% of on-site staff salaries* §8314(f)(1) | AC31: <====== | AE31: =(Z32+Z33)*0.1 -> 0
A32: (2) | B32: On-Site Services Coordinator Salaries
A33: (3) | B33: On-Site other Supportive Services Staff Salaries
A34: (4) | B34: Other Supportive Services Costs: (specify)
A35: (5) | B35: Other Supportive Services Costs: (specify)
A36: (6) | B36: Supportive Services Admin. Overhead - may not exceed 15% of Total Supportive Services Costs* §8314(f)(2) | AC36: <====== | AE36: =SUM(Z31:Z36)*0.15 -> 0
A37: (7) | B37: Total Budgeted Supportive Services Costs | Z37: =SUM(Z31:Z36) -> 0 | AC37: <====== | AE37: =AH28 -> 0
A39: I certify that: I am authorized to provide the information above, and it is accurate to the best of my knowledge.
B41: Name | N41: Title | W41: Date
B42: For Official HCD Use Only
C43: Approved
H44: Occupancy Representative | U44: Date
C45: Approved
H46: Fiscal Representative | U46: Date
A47: HCD AMC Occupancy and Fiscal Rep comments.
